[Event "Titled Tuesday Blitz September 27 Early 2022"]
[White "Samunenkov, Ihor"]
[Black "Principe, Gerson"]
[WhiteFideId "14187086"]
[BlackFideId "3804550"]
[WhiteElo "2441"]
[BlackElo "2280"]
[Result "1-0"]
[Round "01"]
[TimeControl "180+1"]
[Date "2022.09.27"]
[WhiteClock "0:00:04"]
[BlackClock "0:00:04"]

1. e4 {[%clk 0:03:00]}  c6 {[%clk 0:02:18]} 2. d4 {[%clk 0:02:59]}  d5 {[%clk 0:02:19]} 3. e5 {[%clk 0:03:00]}  Bf5 {[%clk 0:02:18]} 4. Nf3 {[%clk 0:02:59]}  e6 {[%clk 0:02:18]} 5. Be2 {[%clk 0:02:59]}  Nd7 {[%clk 0:02:18]} 6. O-O {[%clk 0:02:59]}  Ne7 {[%clk 0:02:18]} 7. c3 {[%clk 0:02:58]}  Bg6 {[%clk 0:02:18]} 8. a4 {[%clk 0:02:53]}  Nf5 {[%clk 0:02:18]} 9. a5 {[%clk 0:02:52]}  Be7 {[%clk 0:02:18]} 10. a6 {[%clk 0:02:19]}  b6 {[%clk 0:02:17]} 11. Nbd2 {[%clk 0:01:56]}  O-O {[%clk 0:02:16]} 12. Ne1 {[%clk 0:01:49]}  f6 {[%clk 0:02:12]} 13. exf6 {[%clk 0:01:37]}  Bxf6 {[%clk 0:02:10]} 14. Nd3 {[%clk 0:01:37]}  e5 {[%clk 0:02:08]} 15. dxe5 {[%clk 0:01:36]}  Nxe5 {[%clk 0:02:09]} 16. Nf4 {[%clk 0:01:30]}  Bf7 {[%clk 0:02:06]} 17. Nf3 {[%clk 0:01:30]}  Qc7 {[%clk 0:01:57]} 18. g3 {[%clk 0:01:22]}  Rad8 {[%clk 0:01:54]} 19. Qc2 {[%clk 0:01:17]}  Nd6 {[%clk 0:01:47]} 20. h4 {[%clk 0:00:57]}  Qd7 {[%clk 0:01:38]} 21. Nxe5 {[%clk 0:00:50]}  Bxe5 {[%clk 0:01:38]} 22. Bd3 {[%clk 0:00:51]}  g6 {[%clk 0:01:34]} 23. Be3 {[%clk 0:00:48]}  Kh8 {[%clk 0:01:11]} 24. Rae1 {[%clk 0:00:47]}  Bg7 {[%clk 0:01:10]} 25. Bd4 {[%clk 0:00:44]}  Rde8 {[%clk 0:01:06]} 26. Bxg7+ {[%clk 0:00:42]}  Kxg7 {[%clk 0:01:06]} 27. Qd2 {[%clk 0:00:33]}  Rxe1 {[%clk 0:01:04]} 28. Rxe1 {[%clk 0:00:34]}  Re8 {[%clk 0:01:05]} 29. Kg2 {[%clk 0:00:32]}  Rxe1 {[%clk 0:01:04]} 30. Qxe1 {[%clk 0:00:33]}  c5 {[%clk 0:01:01]} 31. Qe5+ {[%clk 0:00:32]}  Kg8 {[%clk 0:01:01]} 32. Nxd5 {[%clk 0:00:28]}  Bxd5+ {[%clk 0:00:36]} 33. Qxd5+ {[%clk 0:00:28]}  Kg7 {[%clk 0:00:36]} 34. Be4 {[%clk 0:00:15]}  Qe7 {[%clk 0:00:35]} 35. Bf3 {[%clk 0:00:16]}  h5 {[%clk 0:00:29]} 36. b4 {[%clk 0:00:15]}  cxb4 {[%clk 0:00:28]} 37. cxb4 {[%clk 0:00:16]}  Qf6 {[%clk 0:00:28]} 38. Qc6 {[%clk 0:00:15]}  Qe7 {[%clk 0:00:29]} 39. b5 {[%clk 0:00:13]}  Kf6 {[%clk 0:00:26]} 40. Qd5 {[%clk 0:00:11]}  Kg7 {[%clk 0:00:26]} 41. Qd4+ {[%clk 0:00:05]}  Qf6 {[%clk 0:00:26]} 42. Qd3 {[%clk 0:00:04]}  Qe5 {[%clk 0:00:24]} 43. Bc6 {[%clk 0:00:04]}  Kf6 {[%clk 0:00:20]} 44. Qf3+ {[%clk 0:00:04]}  Kg7 {[%clk 0:00:20]} 45. Bd5 {[%clk 0:00:05]}  Nf5 {[%clk 0:00:17]} 46. Bc6 {[%clk 0:00:04]}  Nd6 {[%clk 0:00:11]} 47. Qe3 {[%clk 0:00:03]}  Qxe3 {[%clk 0:00:11]} 48. fxe3 {[%clk 0:00:04]}  Kf6 {[%clk 0:00:12]} 49. Kf3 {[%clk 0:00:04]}  Ke5 {[%clk 0:00:12]} 50. g4 {[%clk 0:00:03]}  hxg4+ {[%clk 0:00:04]} 51. Kxg4 {[%clk 0:00:04]}  Kf6 {[%clk 0:00:05]} 52. Kf4 {[%clk 0:00:04]}  Nf7 {[%clk 0:00:04]} 53. e4 {[%clk 0:00:04]}  Ne5 {[%clk 0:00:05]} 54. Bd5 {[%clk 0:00:03]}  Nd3+ {[%clk 0:00:05]} 55. Ke3 {[%clk 0:00:04]}  Ne5 {[%clk 0:00:05]} 56. Bc6 {[%clk 0:00:03]}  Nc4+ {[%clk 0:00:04]} 57. Kd4 {[%clk 0:00:03]}  Ne5 {[%clk 0:00:05]} 58. Kd5 {[%clk 0:00:04]}  Nf7 {[%clk 0:00:04]} 59. Be8 {[%clk 0:00:03]}  Ne5 {[%clk 0:00:05]} 60. Kd6 {[%clk 0:00:03]}  Nc4+ {[%clk 0:00:03]} 61. Kc7 {[%clk 0:00:03]}  g5 {[%clk 0:00:01]} 62. hxg5+ {[%clk 0:00:03]}  Kxg5 {[%clk 0:00:02]} 63. Kb8 {[%clk 0:00:04]}  Kf6 {[%clk 0:00:03]} 64. Kxa7 {[%clk 0:00:04]}  Ke7 {[%clk 0:00:04]} 65. Bc6 {[%clk 0:00:04]}  Kd8 {[%clk 0:00:04]} 66. Kb8 {[%clk 0:00:04]} 1-0


[Site "https://www.chess.com"]

[Event "Titled Tuesday Blitz September 27 Early 2022"]
[White "Sanchez, Robert"]
[Black "Sipila, Vilka"]
[WhiteFideId "2034360"]
[BlackFideId "505455"]
[WhiteElo "2388"]
[BlackElo "2329"]
[Result "0-1"]
[Round "01"]
[TimeControl "180+1"]
[Date "2022.09.27"]
[WhiteClock "0:00:09"]
[BlackClock "0:00:35"]

1. e4 {[%clk 0:02:53]}  e6 {[%clk 0:03:00]} 2. d4 {[%clk 0:02:52]}  d5 {[%clk 0:03:00]} 3. Nc3 {[%clk 0:02:52]}  Nf6 {[%clk 0:03:00]} 4. e5 {[%clk 0:02:53]}  Nfd7 {[%clk 0:03:00]} 5. f4 {[%clk 0:02:53]}  c5 {[%clk 0:03:01]} 6. Nf3 {[%clk 0:02:53]}  Nc6 {[%clk 0:03:02]} 7. Be3 {[%clk 0:02:53]}  Qb6 {[%clk 0:03:02]} 8. Qd2 {[%clk 0:02:50]}  Qxb2 {[%clk 0:03:02]} 9. Rb1 {[%clk 0:02:51]}  Qa3 {[%clk 0:03:02]} 10. Rb3 {[%clk 0:02:49]}  Qa5 {[%clk 0:03:02]} 11. Be2 {[%clk 0:02:42]}  c4 {[%clk 0:03:00]} 12. Rb1 {[%clk 0:02:42]}  Bb4 {[%clk 0:02:58]} 13. Rxb4 {[%clk 0:02:42]}  Qxb4 {[%clk 0:02:56]} 14. O-O {[%clk 0:02:42]}  O-O {[%clk 0:02:55]} 15. Qe1 {[%clk 0:02:34]}  f6 {[%clk 0:02:54]} 16. Bd2 {[%clk 0:02:26]}  Qe7 {[%clk 0:02:51]} 17. f5 {[%clk 0:02:23]}  fxe5 {[%clk 0:02:47]} 18. fxe6 {[%clk 0:02:23]}  Qxe6 {[%clk 0:02:35]} 19. Ng5 {[%clk 0:02:22]}  Rxf1+ {[%clk 0:02:36]} 20. Bxf1 {[%clk 0:02:09]}  Qd6 {[%clk 0:02:34]} 21. Qh4 {[%clk 0:01:52]}  Nf6 {[%clk 0:02:33]} 22. dxe5 {[%clk 0:01:52]}  Qxe5 {[%clk 0:02:33]} 23. Nxd5 {[%clk 0:01:43]}  Nxd5 {[%clk 0:02:29]} 24. Qxh7+ {[%clk 0:01:41]}  Kf8 {[%clk 0:02:29]} 25. Qg6 {[%clk 0:01:32]}  Qf5 {[%clk 0:02:13]} 26. Qd6+ {[%clk 0:01:29]}  Ke8 {[%clk 0:01:43]} 27. Bxc4 {[%clk 0:01:24]}  Nde7 {[%clk 0:01:09]} 28. Bf7+ {[%clk 0:00:31]}  Kf8 {[%clk 0:01:09]} 29. Bb3 {[%clk 0:00:26]}  Qe5 {[%clk 0:00:52]} 30. Qa3 {[%clk 0:00:09]}  Qd4+ {[%clk 0:00:47]} 31. Kh1 {[%clk 0:00:08]}  Qxd2 {[%clk 0:00:40]} 32. Nh7+ {[%clk 0:00:09]}  Ke8 {[%clk 0:00:39]} 33. h3 {[%clk 0:00:10]}  Qe1+ {[%clk 0:00:33]} 34. Kh2 {[%clk 0:00:10]}  Qe5+ {[%clk 0:00:34]} 35. Kg1 {[%clk 0:00:09]}  Be6 {[%clk 0:00:35]} 0-1


[Site "https://www.chess.com"]

[Event "Titled Tuesday Blitz September 27 Early 2022"]
[White "Sebenik, Matej"]
[Black "Zanette, Edgard Vinicius"]
[WhiteFideId "14602296"]
[BlackFideId "2109263"]
[WhiteElo "2461"]
[BlackElo "2182"]
[Result "1-0"]
[Round "01"]
[TimeControl "180+1"]
[Date "2022.09.27"]
[WhiteClock "0:00:06"]
[BlackClock "0:00:05"]

1. c4 {[%clk 0:02:59]}  Nf6 {[%clk 0:02:59]} 2. Nc3 {[%clk 0:02:58]}  e5 {[%clk 0:02:56]} 3. Nf3 {[%clk 0:02:57]}  Nc6 {[%clk 0:02:55]} 4. d3 {[%clk 0:02:58]}  Bb4 {[%clk 0:02:52]} 5. Bd2 {[%clk 0:02:58]}  O-O {[%clk 0:02:52]} 6. a3 {[%clk 0:02:57]}  Bxc3 {[%clk 0:02:46]} 7. Bxc3 {[%clk 0:02:58]}  d6 {[%clk 0:02:45]} 8. b4 {[%clk 0:02:39]}  Bg4 {[%clk 0:02:41]} 9. h3 {[%clk 0:02:30]}  Bh5 {[%clk 0:02:40]} 10. Rc1 {[%clk 0:01:56]}  Re8 {[%clk 0:02:31]} 11. g4 {[%clk 0:01:51]}  Bg6 {[%clk 0:02:29]} 12. Nh4 {[%clk 0:01:52]}  d5 {[%clk 0:02:18]} 13. Nxg6 {[%clk 0:01:51]}  hxg6 {[%clk 0:02:18]} 14. Bg2 {[%clk 0:01:48]}  d4 {[%clk 0:02:14]} 15. Bb2 {[%clk 0:01:39]}  Qd7 {[%clk 0:01:31]} 16. b5 {[%clk 0:01:31]}  Nd8 {[%clk 0:01:18]} 17. O-O {[%clk 0:01:25]}  c5 {[%clk 0:00:59]} 18. bxc6 {[%clk 0:01:03]}  bxc6 {[%clk 0:00:57]} 19. f4 {[%clk 0:01:04]}  Rb8 {[%clk 0:00:52]} 20. Rc2 {[%clk 0:00:50]}  exf4 {[%clk 0:00:48]} 21. Rxf4 {[%clk 0:00:37]}  Ne6 {[%clk 0:00:47]} 22. Rf2 {[%clk 0:00:36]}  g5 {[%clk 0:00:44]} 23. Bc1 {[%clk 0:00:35]}  Qd6 {[%clk 0:00:38]} 24. c5 {[%clk 0:00:23]}  Qg3 {[%clk 0:00:31]} 25. Rf3 {[%clk 0:00:24]}  Qe5 {[%clk 0:00:30]} 26. Rf5 {[%clk 0:00:24]}  Qg3 {[%clk 0:00:31]} 27. Bd2 {[%clk 0:00:16]}  Nf4 {[%clk 0:00:26]} 28. Bxf4 {[%clk 0:00:16]}  gxf4 {[%clk 0:00:27]} 29. Qf1 {[%clk 0:00:10]}  Qe3+ {[%clk 0:00:26]} 30. Kh1 {[%clk 0:00:07]}  Re5 {[%clk 0:00:15]} 31. Rxf4 {[%clk 0:00:04]}  Nh7 {[%clk 0:00:09]} 32. Rf3 {[%clk 0:00:04]}  Qh6 {[%clk 0:00:09]} 33. Rxf7 {[%clk 0:00:03]}  Ng5 {[%clk 0:00:10]} 34. Rf5 {[%clk 0:00:02]}  Rxf5 {[%clk 0:00:09]} 35. Qxf5 {[%clk 0:00:02]}  Nxh3 {[%clk 0:00:08]} 36. Qh5 {[%clk 0:00:01]}  Nf2+ {[%clk 0:00:07]} 37. Kh2 {[%clk 0:00:01]}  Qxh5+ {[%clk 0:00:06]} 38. gxh5 {[%clk 0:00:01]}  Ng4+ {[%clk 0:00:07]} 39. Kg3 {[%clk 0:00:02]}  Ne3 {[%clk 0:00:08]} 40. Rc1 {[%clk 0:00:01]}  Rb2 {[%clk 0:00:08]} 41. Bxc6 {[%clk 0:00:01]}  Rxe2 {[%clk 0:00:08]} 42. Be4 {[%clk 0:00:02]}  Ra2 {[%clk 0:00:07]} 43. c6 {[%clk 0:00:03]}  Nf5+ {[%clk 0:00:01]} 44. Bxf5 {[%clk 0:00:02]}  Rc2 {[%clk 0:00:02]} 45. Rxc2 {[%clk 0:00:02]}  Kf8 {[%clk 0:00:02]} 46. c7 {[%clk 0:00:03]}  Ke7 {[%clk 0:00:02]} 47. c8=Q {[%clk 0:00:04]}  Kf6 {[%clk 0:00:03]} 48. Qc5 {[%clk 0:00:05]}  Kg5 {[%clk 0:00:04]} 49. Qxd4 {[%clk 0:00:05]}  Kh6 {[%clk 0:00:04]} 50. Qf4+ {[%clk 0:00:06]}  g5 {[%clk 0:00:05]} 51. hxg6+ {[%clk 0:00:06]}  Kg7 {[%clk 0:00:05]} 52. Rc7+ {[%clk 0:00:06]} 1-0


[Site "https://www.chess.com"]

[Event "Titled Tuesday Blitz September 27 Early 2022"]
[White "Shandrygin, Nikita"]
[Black "So, Wesley"]
[WhiteFideId "24198668"]
[BlackFideId "5202213"]
[WhiteElo "2323"]
[BlackElo "2763"]
[Result "0-1"]
[Round "01"]
[TimeControl "180+1"]
[Date "2022.09.27"]
[WhiteClock "0:00:04"]
[BlackClock "0:00:06"]

1. Nf3 {[%clk 0:02:59]}  c5 {[%clk 0:02:58]} 2. g3 {[%clk 0:02:58]}  Nc6 {[%clk 0:02:57]} 3. d4 {[%clk 0:02:59]}  cxd4 {[%clk 0:02:57]} 4. Nxd4 {[%clk 0:03:00]}  g6 {[%clk 0:02:57]} 5. Bg2 {[%clk 0:03:00]}  Bg7 {[%clk 0:02:57]} 6. Nb3 {[%clk 0:03:00]}  Nf6 {[%clk 0:02:56]} 7. Nc3 {[%clk 0:03:00]}  a5 {[%clk 0:02:54]} 8. a4 {[%clk 0:03:00]}  O-O {[%clk 0:02:53]} 9. O-O {[%clk 0:03:00]}  d6 {[%clk 0:02:52]} 10. h3 {[%clk 0:02:57]}  Be6 {[%clk 0:02:50]} 11. e4 {[%clk 0:02:57]}  Rc8 {[%clk 0:02:34]} 12. Nd5 {[%clk 0:02:56]}  Bxd5 {[%clk 0:02:28]} 13. exd5 {[%clk 0:02:57]}  Nb4 {[%clk 0:02:28]} 14. c3 {[%clk 0:02:54]}  Na6 {[%clk 0:02:28]} 15. Re1 {[%clk 0:02:46]}  Re8 {[%clk 0:02:23]} 16. Nd4 {[%clk 0:02:46]}  Nc7 {[%clk 0:02:12]} 17. c4 {[%clk 0:02:33]}  Nd7 {[%clk 0:02:05]} 18. Be3 {[%clk 0:02:09]}  Nc5 {[%clk 0:01:57]} 19. Re2 {[%clk 0:01:45]}  Qd7 {[%clk 0:01:50]} 20. Kh2 {[%clk 0:01:34]}  N7a6 {[%clk 0:01:40]} 21. h4 {[%clk 0:01:25]}  Nb4 {[%clk 0:01:30]} 22. Bh3 {[%clk 0:01:20]}  f5 {[%clk 0:01:29]} 23. Ra3 {[%clk 0:01:06]}  e5 {[%clk 0:01:24]} 24. dxe6 {[%clk 0:01:03]}  Nxe6 {[%clk 0:01:25]} 25. Nb5 {[%clk 0:00:27]}  Rxc4 {[%clk 0:01:05]} 26. Qxd6 {[%clk 0:00:24]}  Rd8 {[%clk 0:00:57]} 27. Qb6 {[%clk 0:00:14]}  Nd5 {[%clk 0:00:43]} 28. Qxa5 {[%clk 0:00:11]}  Bf8 {[%clk 0:00:31]} 29. Rb3 {[%clk 0:00:10]}  Bb4 {[%clk 0:00:28]} 30. Rxb4 {[%clk 0:00:10]}  Rxb4 {[%clk 0:00:24]} 31. Bb6 {[%clk 0:00:08]}  Re8 {[%clk 0:00:22]} 32. Bg2 {[%clk 0:00:08]}  Rc4 {[%clk 0:00:16]} 33. Nc3 {[%clk 0:00:06]}  Nxc3 {[%clk 0:00:14]} 34. bxc3 {[%clk 0:00:07]}  Rcc8 {[%clk 0:00:14]} 35. Qd5 {[%clk 0:00:06]}  Qxd5 {[%clk 0:00:11]} 36. Bxd5 {[%clk 0:00:07]}  Kf7 {[%clk 0:00:12]} 37. c4 {[%clk 0:00:07]}  Kf6 {[%clk 0:00:11]} 38. Be3 {[%clk 0:00:06]}  Rc7 {[%clk 0:00:09]} 39. Rb2 {[%clk 0:00:06]}  Ree7 {[%clk 0:00:08]} 40. a5 {[%clk 0:00:06]}  Kg7 {[%clk 0:00:07]} 41. Rb6 {[%clk 0:00:06]}  Nc5 {[%clk 0:00:06]} 42. Bd4+ {[%clk 0:00:06]}  Kh6 {[%clk 0:00:06]} 43. h5 {[%clk 0:00:06]}  Kxh5 {[%clk 0:00:06]} 44. Rd6 {[%clk 0:00:06]}  Ne4 {[%clk 0:00:06]} 45. Rd8 {[%clk 0:00:05]}  Red7 {[%clk 0:00:06]} 46. Rh8 {[%clk 0:00:05]}  Ng5 {[%clk 0:00:06]} 47. Kg2 {[%clk 0:00:05]}  Rxc4 {[%clk 0:00:05]} 48. Bxc4 {[%clk 0:00:05]}  Rxd4 {[%clk 0:00:05]} 49. Be2+ {[%clk 0:00:06]}  Kh6 {[%clk 0:00:06]} 50. Rb8 {[%clk 0:00:05]}  Ra4 {[%clk 0:00:06]} 51. Rxb7 {[%clk 0:00:05]}  Rxa5 {[%clk 0:00:07]} 52. Rb2 {[%clk 0:00:05]}  Ra4 {[%clk 0:00:07]} 53. Bf3 {[%clk 0:00:06]}  f4 {[%clk 0:00:06]} 54. Re2 {[%clk 0:00:05]}  Ra3 {[%clk 0:00:06]} 55. Bc6 {[%clk 0:00:04]}  f3+ {[%clk 0:00:06]} 0-1


[Site "https://www.chess.com"]

[Event "Titled Tuesday Blitz September 27 Early 2022"]
[White "Shivika, Rohilla"]
[Black "Bilan, Danila"]
[WhiteFideId "45015414"]
[BlackFideId "24161918"]
[WhiteElo "1605"]
[BlackElo "2164"]
[Result "0-1"]
[Round "01"]
[TimeControl "180+1"]
[Date "2022.09.27"]
[WhiteClock "0:00:08"]
[BlackClock "0:00:30"]

1. e4 {[%clk 0:03:00]}  c6 {[%clk 0:03:00]} 2. d4 {[%clk 0:03:00]}  d5 {[%clk 0:03:00]} 3. e5 {[%clk 0:02:57]}  c5 {[%clk 0:02:59]} 4. dxc5 {[%clk 0:02:51]}  Nc6 {[%clk 0:02:59]} 5. Nf3 {[%clk 0:02:50]}  Bg4 {[%clk 0:02:55]} 6. Be2 {[%clk 0:02:48]}  e6 {[%clk 0:02:55]} 7. Be3 {[%clk 0:02:47]}  Bxf3 {[%clk 0:02:53]} 8. Bxf3 {[%clk 0:02:47]}  Nxe5 {[%clk 0:02:53]} 9. Be2 {[%clk 0:02:46]}  Nc6 {[%clk 0:02:50]} 10. O-O {[%clk 0:02:45]}  d4 {[%clk 0:02:46]} 11. Bf4 {[%clk 0:02:39]}  Bxc5 {[%clk 0:02:46]} 12. Nd2 {[%clk 0:02:38]}  Nf6 {[%clk 0:02:43]} 13. Nb3 {[%clk 0:02:35]}  Bd6 {[%clk 0:02:34]} 14. Bg5 {[%clk 0:02:29]}  e5 {[%clk 0:02:32]} 15. Bb5 {[%clk 0:02:16]}  O-O {[%clk 0:02:27]} 16. f4 {[%clk 0:02:13]}  h6 {[%clk 0:01:56]} 17. fxe5 {[%clk 0:01:50]}  Bxe5 {[%clk 0:01:52]} 18. Bh4 {[%clk 0:01:44]}  Qd6 {[%clk 0:01:47]} 19. h3 {[%clk 0:01:27]}  Nd5 {[%clk 0:01:36]} 20. Qf3 {[%clk 0:01:11]}  Ne3 {[%clk 0:01:18]} 21. Rfe1 {[%clk 0:00:47]}  Nxc2 {[%clk 0:01:12]} 22. Bd3 {[%clk 0:00:25]}  Nxa1 {[%clk 0:00:58]} 23. Rxa1 {[%clk 0:00:19]}  g6 {[%clk 0:00:54]} 24. Rf1 {[%clk 0:00:14]}  Bh2+ {[%clk 0:00:48]} 25. Kh1 {[%clk 0:00:14]}  Ne5 {[%clk 0:00:48]} 26. Qe4 {[%clk 0:00:13]}  Nxd3 {[%clk 0:00:48]} 27. Qxd3 {[%clk 0:00:13]}  Be5 {[%clk 0:00:48]} 28. Be1 {[%clk 0:00:13]}  Rfe8 {[%clk 0:00:41]} 29. Bd2 {[%clk 0:00:13]}  Bg7 {[%clk 0:00:40]} 30. Qf3 {[%clk 0:00:12]}  Qe7 {[%clk 0:00:37]} 31. Nc1 {[%clk 0:00:10]}  Rac8 {[%clk 0:00:33]} 32. Nd3 {[%clk 0:00:10]}  Rc7 {[%clk 0:00:34]} 33. Bb4 {[%clk 0:00:11]}  Qe4 {[%clk 0:00:33]} 34. Qf2 {[%clk 0:00:09]}  Qxd3 {[%clk 0:00:32]} 35. Bd6 {[%clk 0:00:10]}  Rd7 {[%clk 0:00:31]} 36. Bf4 {[%clk 0:00:08]}  Qf5 {[%clk 0:00:30]} 37. g4 {[%clk 0:00:08]}  Qe4+ {[%clk 0:00:30]} 38. Kg1 {[%clk 0:00:08]}  d3 {[%clk 0:00:30]} 39. Bd2 {[%clk 0:00:08]}  Bd4 {[%clk 0:00:30]} 0-1


[Site "https://www.chess.com"]

[Event "Titled Tuesday Blitz September 27 Early 2022"]
[White "Skliarov, Viktor"]
[Black "Valle Maytin, Luis Enrique"]
[WhiteFideId "14106736"]
[BlackFideId "3503666"]
[WhiteElo "2213"]
[BlackElo "2225"]
[Result "1-0"]
[Round "01"]
[TimeControl "180+1"]
[Date "2022.09.27"]
[WhiteClock "0:00:39"]
[BlackClock "0:00:01"]

1. e4 {[%clk 0:02:54]}  c6 {[%clk 0:02:49]} 2. d4 {[%clk 0:02:53]}  d5 {[%clk 0:02:47]} 3. e5 {[%clk 0:02:54]}  c5 {[%clk 0:02:46]} 4. dxc5 {[%clk 0:02:54]}  Nc6 {[%clk 0:02:45]} 5. f4 {[%clk 0:02:54]}  Nh6 {[%clk 0:02:42]} 6. c3 {[%clk 0:02:40]}  Bg4 {[%clk 0:02:36]} 7. Nf3 {[%clk 0:02:39]}  e6 {[%clk 0:02:31]} 8. Be3 {[%clk 0:02:33]}  Nf5 {[%clk 0:02:27]} 9. Bf2 {[%clk 0:02:33]}  Bxf3 {[%clk 0:02:22]} 10. Qxf3 {[%clk 0:02:31]}  g5 {[%clk 0:02:22]} 11. Bd3 {[%clk 0:02:00]}  Nh6 {[%clk 0:01:19]} 12. g3 {[%clk 0:01:36]}  Bg7 {[%clk 0:01:03]} 13. O-O {[%clk 0:01:16]}  gxf4 {[%clk 0:00:52]} 14. gxf4 {[%clk 0:01:15]}  Qe7 {[%clk 0:00:52]} 15. b4 {[%clk 0:01:09]}  Qd7 {[%clk 0:00:31]} 16. Na3 {[%clk 0:01:04]}  Ne7 {[%clk 0:00:21]} 17. Bb5 {[%clk 0:00:55]}  Nc6 {[%clk 0:00:20]} 18. Rad1 {[%clk 0:00:55]}  a6 {[%clk 0:00:19]} 19. Ba4 {[%clk 0:00:44]}  Nf5 {[%clk 0:00:19]} 20. c4 {[%clk 0:00:42]}  d4 {[%clk 0:00:15]} 21. Nc2 {[%clk 0:00:42]}  O-O {[%clk 0:00:01]} 22. Kh1 {[%clk 0:00:39]} 1-0


[Site "https://www.chess.com"]

[Event "Titled Tuesday Blitz September 27 Early 2022"]
[White "Sychev, Klementy"]
[Black "Amgalantengis, Enkh-Amgalan"]
[WhiteFideId "4114060"]
[BlackFideId "4903536"]
[WhiteElo "2564"]
[BlackElo "1719"]
[Result "1-0"]
[Round "01"]
[TimeControl "180+1"]
[Date "2022.09.27"]
[WhiteClock "0:00:28"]
[BlackClock "0:00:03"]

1. d4 {[%clk 0:02:56]}  d5 {[%clk 0:02:59]} 2. c4 {[%clk 0:02:56]}  c6 {[%clk 0:02:59]} 3. e3 {[%clk 0:02:52]}  Nf6 {[%clk 0:02:58]} 4. Bd3 {[%clk 0:02:52]}  e6 {[%clk 0:02:50]} 5. b3 {[%clk 0:02:48]}  Nbd7 {[%clk 0:02:47]} 6. Bb2 {[%clk 0:02:39]}  Bd6 {[%clk 0:02:41]} 7. Nc3 {[%clk 0:02:35]}  O-O {[%clk 0:02:40]} 8. Nge2 {[%clk 0:02:32]}  Re8 {[%clk 0:02:34]} 9. O-O {[%clk 0:02:32]}  e5 {[%clk 0:01:42]} 10. cxd5 {[%clk 0:02:29]}  cxd5 {[%clk 0:01:42]} 11. dxe5 {[%clk 0:02:27]}  Nxe5 {[%clk 0:01:41]} 12. Bb5 {[%clk 0:02:27]}  Bd7 {[%clk 0:01:35]} 13. Bxd7 {[%clk 0:02:26]}  Qxd7 {[%clk 0:01:35]} 14. Nf4 {[%clk 0:02:21]}  Rad8 {[%clk 0:01:08]} 15. Ncxd5 {[%clk 0:02:17]}  Nxd5 {[%clk 0:01:07]} 16. Qxd5 {[%clk 0:02:17]}  Ng4 {[%clk 0:01:04]} 17. Rad1 {[%clk 0:02:03]}  Qe7 {[%clk 0:00:55]} 18. Qh5 {[%clk 0:01:26]}  Nxe3 {[%clk 0:00:27]} 19. fxe3 {[%clk 0:01:11]}  Qxe3+ {[%clk 0:00:27]} 20. Kh1 {[%clk 0:01:12]}  Bxf4 {[%clk 0:00:27]} 21. Rxd8 {[%clk 0:00:58]}  Rxd8 {[%clk 0:00:26]} 22. Qf5 {[%clk 0:00:47]}  Qf2 {[%clk 0:00:18]} 23. Qb1 {[%clk 0:00:41]}  Qh4 {[%clk 0:00:11]} 24. g3 {[%clk 0:00:32]}  Bxg3 {[%clk 0:00:10]} 25. Qc2 {[%clk 0:00:32]}  Bd6 {[%clk 0:00:05]} 26. Qg2 {[%clk 0:00:29]}  Bxh2 {[%clk 0:00:03]} 27. Qxg7# {[%clk 0:00:28]} 1-0


[Site "https://www.chess.com"]

[Event "Titled Tuesday Blitz September 27 Early 2022"]
[White "Tang, Andrew"]
[Black "Miszler, Levente"]
[WhiteFideId "2059630"]
[BlackFideId "763276"]
[WhiteElo "2584"]
[BlackElo "1966"]
[Result "1-0"]
[Round "01"]
[TimeControl "180+1"]
[Date "2022.09.27"]
[WhiteClock "0:01:06"]
[BlackClock "0:00:29"]

1. d4 {[%clk 0:03:00]}  Nf6 {[%clk 0:02:55]} 2. c4 {[%clk 0:02:57]}  e6 {[%clk 0:02:50]} 3. Nc3 {[%clk 0:02:55]}  d5 {[%clk 0:02:46]} 4. cxd5 {[%clk 0:02:55]}  exd5 {[%clk 0:02:47]} 5. Bg5 {[%clk 0:02:55]}  c6 {[%clk 0:02:43]} 6. e3 {[%clk 0:02:55]}  Be7 {[%clk 0:02:40]} 7. Bd3 {[%clk 0:02:55]}  h6 {[%clk 0:02:40]} 8. Bh4 {[%clk 0:02:54]}  Be6 {[%clk 0:02:40]} 9. Nge2 {[%clk 0:02:54]}  Nbd7 {[%clk 0:02:40]} 10. O-O {[%clk 0:02:55]}  O-O {[%clk 0:02:40]} 11. f3 {[%clk 0:02:55]}  c5 {[%clk 0:02:39]} 12. Rc1 {[%clk 0:02:54]}  Rc8 {[%clk 0:02:37]} 13. Bf2 {[%clk 0:02:54]}  Qb6 {[%clk 0:02:28]} 14. Qc2 {[%clk 0:02:25]}  cxd4 {[%clk 0:02:11]} 15. Nxd4 {[%clk 0:02:24]}  Nc5 {[%clk 0:02:07]} 16. Be2 {[%clk 0:02:22]}  Bd7 {[%clk 0:02:02]} 17. Qd2 {[%clk 0:02:18]}  Na4 {[%clk 0:01:50]} 18. Nxa4 {[%clk 0:02:15]}  Bxa4 {[%clk 0:01:51]} 19. Bd3 {[%clk 0:02:15]}  Bb4 {[%clk 0:01:45]} 20. Qe2 {[%clk 0:02:15]}  Rfe8 {[%clk 0:01:42]} 21. a3 {[%clk 0:01:51]}  Bc5 {[%clk 0:01:38]} 22. Nf5 {[%clk 0:01:49]}  d4 {[%clk 0:01:26]} 23. e4 {[%clk 0:01:43]}  Nd5 {[%clk 0:01:21]} 24. Qd2 {[%clk 0:01:28]}  Ne3 {[%clk 0:01:17]} 25. Rfe1 {[%clk 0:01:22]}  Nxf5 {[%clk 0:00:54]} 26. exf5 {[%clk 0:01:22]}  Bb3 {[%clk 0:00:51]} 27. f6 {[%clk 0:01:14]}  Rxe1+ {[%clk 0:00:43]} 28. Qxe1 {[%clk 0:01:13]}  Qxf6 {[%clk 0:00:42]} 29. Rxc5 {[%clk 0:01:12]}  Rd8 {[%clk 0:00:36]} 30. Qe4 {[%clk 0:01:08]}  g6 {[%clk 0:00:36]} 31. Bh4 {[%clk 0:01:08]}  Qd6 {[%clk 0:00:32]} 32. Be7 {[%clk 0:01:07]}  Qb6 {[%clk 0:00:29]} 33. Rb5 {[%clk 0:01:06]} 1-0


[Site "https://www.chess.com"]

[Event "Titled Tuesday Blitz September 27 Early 2022"]
[White "Tarnowska, Aleksandra"]
[Black "Di Nicolantonio, Lucas"]
[WhiteFideId "1180967"]
[BlackFideId "680460"]
[WhiteElo "1700"]
[BlackElo "2381"]
[Result "0-1"]
[Round "01"]
[TimeControl "180+1"]
[Date "2022.09.27"]
[WhiteClock "0:01:39"]
[BlackClock "0:01:36"]

1. e4 {[%clk 0:02:53]}  g6 {[%clk 0:02:58]} 2. d4 {[%clk 0:02:51]}  Bg7 {[%clk 0:02:58]} 3. Nc3 {[%clk 0:02:50]}  d6 {[%clk 0:02:59]} 4. Be3 {[%clk 0:02:50]}  a6 {[%clk 0:02:58]} 5. Qd2 {[%clk 0:02:50]}  b5 {[%clk 0:02:58]} 6. a3 {[%clk 0:02:49]}  Nd7 {[%clk 0:02:58]} 7. f3 {[%clk 0:02:47]}  Bb7 {[%clk 0:02:55]} 8. h4 {[%clk 0:02:45]}  h6 {[%clk 0:02:51]} 9. g4 {[%clk 0:02:44]}  c5 {[%clk 0:02:44]} 10. dxc5 {[%clk 0:02:39]}  Nxc5 {[%clk 0:02:43]} 11. Nge2 {[%clk 0:02:33]}  Rc8 {[%clk 0:02:38]} 12. O-O-O {[%clk 0:02:12]}  Qa5 {[%clk 0:02:04]} 13. Nd4 {[%clk 0:02:02]}  b4 {[%clk 0:01:51]} 14. axb4 {[%clk 0:01:55]}  Qa1+ {[%clk 0:01:44]} 15. Nb1 {[%clk 0:01:54]}  Bxd4 {[%clk 0:01:44]} 16. bxc5 {[%clk 0:01:39]}  Bxb2# {[%clk 0:01:36]} 0-1


[Site "https://www.chess.com"]